[Event "Titled Tuesday Blitz May 4 2021"]
[White "Jain, Naveen"]
[Black "Tomb, Maroun"]
[WhiteFideId "5003970"]
[BlackFideId "5300398"]
[WhiteElo "2036"]
[BlackElo "2568"]
[Result "0-1"]
[Round "03"]
[TimeControl "180+1"]
[Date "2021.05.04"]
[WhiteClock "0:00:06"]
[BlackClock "0:00:14"]

1. c4 {[%clk 0:03:00]}  Nf6 {[%clk 0:02:59]} 2. g3 {[%clk 0:03:00]}  d6 {[%clk 0:02:59]} 3. Bg2 {[%clk 0:03:00]}  Nbd7 {[%clk 0:02:59]} 4. Nf3 {[%clk 0:03:00]}  e5 {[%clk 0:03:00]} 5. d3 {[%clk 0:02:59]}  Be7 {[%clk 0:02:57]} 6. O-O {[%clk 0:03:00]}  O-O {[%clk 0:02:57]} 7. Nc3 {[%clk 0:03:00]}  c6 {[%clk 0:02:51]} 8. Rb1 {[%clk 0:02:59]}  a5 {[%clk 0:02:50]} 9. a3 {[%clk 0:02:59]}  Re8 {[%clk 0:02:46]} 10. b4 {[%clk 0:02:58]}  axb4 {[%clk 0:02:45]} 11. axb4 {[%clk 0:02:57]}  Bf8 {[%clk 0:02:42]} 12. b5 {[%clk 0:02:57]}  d5 {[%clk 0:02:40]} 13. bxc6 {[%clk 0:02:56]}  bxc6 {[%clk 0:02:40]} 14. cxd5 {[%clk 0:02:54]}  cxd5 {[%clk 0:02:41]} 15. Bg5 {[%clk 0:02:53]}  h6 {[%clk 0:02:41]} 16. Bd2 {[%clk 0:02:41]}  Bc5 {[%clk 0:02:02]} 17. Na4 {[%clk 0:02:36]}  Ba7 {[%clk 0:01:59]} 18. Qb3 {[%clk 0:02:32]}  e4 {[%clk 0:01:59]} 19. dxe4 {[%clk 0:02:21]}  dxe4 {[%clk 0:01:59]} 20. Ne1 {[%clk 0:02:21]}  Rb8 {[%clk 0:01:21]} 21. Qc2 {[%clk 0:02:16]}  Rxb1 {[%clk 0:01:20]} 22. Qxb1 {[%clk 0:02:17]}  e3 {[%clk 0:01:20]} 23. Bxe3 {[%clk 0:02:11]}  Bxe3 {[%clk 0:01:21]} 24. fxe3 {[%clk 0:02:11]}  Qa5 {[%clk 0:01:09]} 25. Nb2 {[%clk 0:02:01]}  Ba6 {[%clk 0:01:07]} 26. Ned3 {[%clk 0:02:00]}  Ng4 {[%clk 0:01:01]} 27. Qa1 {[%clk 0:01:53]}  Qb6 {[%clk 0:00:54]} 28. Nd1 {[%clk 0:01:44]}  Bxd3 {[%clk 0:00:52]} 29. exd3 {[%clk 0:01:43]}  Nxe3 {[%clk 0:00:47]} 30. Nxe3 {[%clk 0:01:43]}  Qxe3+ {[%clk 0:00:48]} 31. Kh1 {[%clk 0:01:43]}  Qxd3 {[%clk 0:00:48]} 32. Bc6 {[%clk 0:01:13]}  Re2 {[%clk 0:00:37]} 33. Bg2 {[%clk 0:00:56]}  Nf6 {[%clk 0:00:31]} 34. Re1 {[%clk 0:00:36]}  Qe3 {[%clk 0:00:24]} 35. Rxe2 {[%clk 0:00:31]}  Qxe2 {[%clk 0:00:25]} 36. Qf1 {[%clk 0:00:28]}  Qe5 {[%clk 0:00:24]} 37. Qf3 {[%clk 0:00:19]}  g6 {[%clk 0:00:24]} 38. h3 {[%clk 0:00:18]}  h5 {[%clk 0:00:24]} 39. Qa8+ {[%clk 0:00:15]}  Kg7 {[%clk 0:00:24]} 40. Qf3 {[%clk 0:00:16]}  Qe1+ {[%clk 0:00:23]} 41. Kh2 {[%clk 0:00:15]}  Qe6 {[%clk 0:00:24]} 42. Qf2 {[%clk 0:00:12]}  Qd6 {[%clk 0:00:23]} 43. Kh1 {[%clk 0:00:11]}  Nd7 {[%clk 0:00:23]} 44. Qf3 {[%clk 0:00:09]}  Ne5 {[%clk 0:00:23]} 45. Qd5 {[%clk 0:00:09]}  Qf6 {[%clk 0:00:23]} 46. Kh2 {[%clk 0:00:08]}  h4 {[%clk 0:00:22]} 47. gxh4 {[%clk 0:00:07]}  Qf4+ {[%clk 0:00:22]} 48. Kh1 {[%clk 0:00:07]}  Qc1+ {[%clk 0:00:21]} 49. Kh2 {[%clk 0:00:06]}  Qf4+ {[%clk 0:00:21]} 50. Kh1 {[%clk 0:00:06]}  f5 {[%clk 0:00:21]} 51. Qb7+ {[%clk 0:00:05]}  Kh6 {[%clk 0:00:20]} 52. h5 {[%clk 0:00:06]}  Kxh5 {[%clk 0:00:18]} 53. Qa8 {[%clk 0:00:07]}  Qc1+ {[%clk 0:00:16]} 54. Kh2 {[%clk 0:00:07]}  Qc7 {[%clk 0:00:15]} 55. Qh8+ {[%clk 0:00:06]}  Kg5 {[%clk 0:00:16]} 56. h4+ {[%clk 0:00:06]}  Kg4 {[%clk 0:00:15]} 57. Qh6 {[%clk 0:00:06]}  Nf3+ {[%clk 0:00:14]} 0-1


[Site "https://www.chess.com"]

[Event "Titled Tuesday Blitz May 4 2021"]
[White "Jarovinsky, Alexey"]
[Black "Isajevsky, Anton"]
[WhiteFideId "14115131"]
[BlackFideId "4142500"]
[WhiteElo "2446"]
[BlackElo "2510"]
[Result "1-0"]
[Round "03"]
[TimeControl "180+1"]
[Date "2021.05.04"]
[WhiteClock "0:00:05"]
[BlackClock "0:00:05"]

1. Nc3 {[%clk 0:03:00]}  c5 {[%clk 0:02:54]} 2. e4 {[%clk 0:02:58]}  d6 {[%clk 0:02:53]} 3. Bb5+ {[%clk 0:02:56]}  Bd7 {[%clk 0:02:53]} 4. a4 {[%clk 0:02:53]}  g6 {[%clk 0:02:52]} 5. Nge2 {[%clk 0:02:51]}  Bg7 {[%clk 0:02:52]} 6. d3 {[%clk 0:02:47]}  Nc6 {[%clk 0:02:51]} 7. Bxc6 {[%clk 0:02:26]}  Bxc6 {[%clk 0:02:50]} 8. Be3 {[%clk 0:02:24]}  Nf6 {[%clk 0:02:48]} 9. Qc1 {[%clk 0:02:20]}  d5 {[%clk 0:02:10]} 10. Bh6 {[%clk 0:01:58]}  O-O {[%clk 0:02:02]} 11. Bxg7 {[%clk 0:01:56]}  Kxg7 {[%clk 0:02:03]} 12. Ng3 {[%clk 0:01:50]}  e6 {[%clk 0:01:24]} 13. O-O {[%clk 0:01:44]}  b6 {[%clk 0:01:14]} 14. Qf4 {[%clk 0:01:28]}  h6 {[%clk 0:01:07]} 15. h3 {[%clk 0:01:05]}  a6 {[%clk 0:00:54]} 16. Rfe1 {[%clk 0:00:58]}  Qb8 {[%clk 0:00:34]} 17. e5 {[%clk 0:00:53]}  Nd7 {[%clk 0:00:33]} 18. h4 {[%clk 0:00:32]}  Qc7 {[%clk 0:00:27]} 19. Nb1 {[%clk 0:00:31]}  b5 {[%clk 0:00:23]} 20. a5 {[%clk 0:00:29]}  Kh7 {[%clk 0:00:20]} 21. Qe3 {[%clk 0:00:19]}  d4 {[%clk 0:00:20]} 22. Qe2 {[%clk 0:00:19]}  Bd5 {[%clk 0:00:14]} 23. Nd2 {[%clk 0:00:18]}  c4 {[%clk 0:00:13]} 24. f4 {[%clk 0:00:14]}  Rac8 {[%clk 0:00:12]} 25. Nf3 {[%clk 0:00:13]}  cxd3 {[%clk 0:00:12]} 26. cxd3 {[%clk 0:00:13]}  Qc2 {[%clk 0:00:10]} 27. Nxd4 {[%clk 0:00:13]}  Qxe2 {[%clk 0:00:09]} 28. Rxe2 {[%clk 0:00:14]}  Nc5 {[%clk 0:00:09]} 29. Rd2 {[%clk 0:00:12]}  Rfd8 {[%clk 0:00:10]} 30. b4 {[%clk 0:00:11]}  Na4 {[%clk 0:00:05]} 31. Nge2 {[%clk 0:00:11]}  Rc7 {[%clk 0:00:04]} 32. Re1 {[%clk 0:00:09]}  Rdc8 {[%clk 0:00:04]} 33. Kf2 {[%clk 0:00:09]}  Kg7 {[%clk 0:00:04]} 34. g4 {[%clk 0:00:09]}  Nc3 {[%clk 0:00:03]} 35. f5 {[%clk 0:00:07]}  exf5 {[%clk 0:00:01]} 36. gxf5 {[%clk 0:00:07]}  Nxe2 {[%clk 0:00:02]} 37. Rdxe2 {[%clk 0:00:06]}  Rc1 {[%clk 0:00:02]} 38. e6 {[%clk 0:00:05]}  fxe6 {[%clk 0:00:03]} 39. fxe6 {[%clk 0:00:04]}  Rf8+ {[%clk 0:00:02]} 40. Kg3 {[%clk 0:00:04]}  Rxe1 {[%clk 0:00:03]} 41. Rxe1 {[%clk 0:00:03]}  Re8 {[%clk 0:00:04]} 42. Re5 {[%clk 0:00:03]}  Ba2 {[%clk 0:00:04]} 43. Rc5 {[%clk 0:00:03]}  Bxe6 {[%clk 0:00:04]} 44. Rc7+ {[%clk 0:00:03]}  Kg8 {[%clk 0:00:03]} 45. Rc6 {[%clk 0:00:04]}  Bc8 {[%clk 0:00:03]} 46. Rxg6+ {[%clk 0:00:03]}  Kh7 {[%clk 0:00:03]} 47. Rf6 {[%clk 0:00:03]}  Rd8 {[%clk 0:00:04]} 48. Rf4 {[%clk 0:00:03]}  Kg6 {[%clk 0:00:04]} 49. Kf3 {[%clk 0:00:03]}  h5 {[%clk 0:00:04]} 50. Ke3 {[%clk 0:00:03]}  Bg4 {[%clk 0:00:04]} 51. Kd2 {[%clk 0:00:04]}  Rc8 {[%clk 0:00:03]} 52. Re4 {[%clk 0:00:04]}  Rd8 {[%clk 0:00:04]} 53. Ke3 {[%clk 0:00:03]}  Rc8 {[%clk 0:00:04]} 54. Re5 {[%clk 0:00:03]}  Rd8 {[%clk 0:00:04]} 55. Rg5+ {[%clk 0:00:04]}  Kf6 {[%clk 0:00:05]} 56. Rc5 {[%clk 0:00:05]}  Re8+ {[%clk 0:00:05]} 57. Kd2 {[%clk 0:00:05]}  Rd8 {[%clk 0:00:05]} 58. Kc3 {[%clk 0:00:05]}  Rd6 {[%clk 0:00:06]} 59. Rc6 {[%clk 0:00:05]}  Ke5 {[%clk 0:00:06]} 60. Rxd6 {[%clk 0:00:05]}  Kxd6 {[%clk 0:00:07]} 61. Kd2 {[%clk 0:00:05]}  Kd5 {[%clk 0:00:07]} 62. Ke3 {[%clk 0:00:06]}  Bd1 {[%clk 0:00:07]} 63. Ne2 {[%clk 0:00:06]}  Ke5 {[%clk 0:00:05]} 64. Nf4 {[%clk 0:00:05]}  Bg4 {[%clk 0:00:05]} 65. d4+ {[%clk 0:00:05]}  Kf5 {[%clk 0:00:05]} 66. Nd3 {[%clk 0:00:05]}  Ke6 {[%clk 0:00:04]} 67. Nc5+ {[%clk 0:00:04]}  Kd5 {[%clk 0:00:05]} 68. Nxa6 {[%clk 0:00:05]}  Kc4 {[%clk 0:00:05]} 69. Ke4 {[%clk 0:00:05]} 1-0


[Site "https://www.chess.com"]

[Event "Titled Tuesday Blitz May 4 2021"]
[White "Jaskolka, Tomasz"]
[Black "Nefedov, Sergey"]
[WhiteFideId "1170791"]
[BlackFideId "24113417"]
[WhiteElo "2050"]
[BlackElo "2385"]
[Result "0-1"]
[Round "03"]
[TimeControl "180+1"]
[Date "2021.05.04"]
[WhiteClock "0:00:07"]
[BlackClock "0:00:08"]

1. d4 {[%clk 0:03:00]}  Nf6 {[%clk 0:02:57]} 2. c4 {[%clk 0:02:57]}  e6 {[%clk 0:02:57]} 3. Nf3 {[%clk 0:02:52]}  d5 {[%clk 0:02:56]} 4. Nc3 {[%clk 0:02:51]}  c6 {[%clk 0:02:52]} 5. cxd5 {[%clk 0:02:48]}  exd5 {[%clk 0:02:49]} 6. Bg5 {[%clk 0:02:47]}  Be7 {[%clk 0:02:50]} 7. e3 {[%clk 0:02:38]}  Bf5 {[%clk 0:02:44]} 8. Be2 {[%clk 0:02:33]}  O-O {[%clk 0:02:42]} 9. O-O {[%clk 0:02:31]}  Nbd7 {[%clk 0:02:35]} 10. Nh4 {[%clk 0:02:12]}  Be4 {[%clk 0:02:11]} 11. Nxe4 {[%clk 0:02:05]}  Nxe4 {[%clk 0:02:04]} 12. Bxe7 {[%clk 0:02:06]}  Qxe7 {[%clk 0:02:04]} 13. Nf5 {[%clk 0:01:56]}  Qg5 {[%clk 0:01:52]} 14. Ng3 {[%clk 0:01:56]}  f5 {[%clk 0:01:53]} 15. f4 {[%clk 0:01:35]}  Qe7 {[%clk 0:01:48]} 16. Qd3 {[%clk 0:01:32]}  Rae8 {[%clk 0:01:32]} 17. Nxe4 {[%clk 0:00:49]}  Qxe4 {[%clk 0:01:29]} 18. Qxe4 {[%clk 0:00:50]}  Rxe4 {[%clk 0:01:17]} 19. Rf3 {[%clk 0:00:48]}  Rfe8 {[%clk 0:01:09]} 20. Kf2 {[%clk 0:00:46]}  Nf6 {[%clk 0:01:07]} 21. h3 {[%clk 0:00:41]}  g6 {[%clk 0:00:57]} 22. Bd3 {[%clk 0:00:35]}  R4e7 {[%clk 0:00:55]} 23. Ke2 {[%clk 0:00:30]}  h5 {[%clk 0:00:43]} 24. Kd2 {[%clk 0:00:26]}  h4 {[%clk 0:00:42]} 25. b4 {[%clk 0:00:22]}  b6 {[%clk 0:00:34]} 26. Rc1 {[%clk 0:00:21]}  Rc7 {[%clk 0:00:33]} 27. Ba6 {[%clk 0:00:16]}  Kf7 {[%clk 0:00:31]} 28. Kd3 {[%clk 0:00:13]}  Ne4 {[%clk 0:00:30]} 29. Bb5 {[%clk 0:00:07]}  Rec8 {[%clk 0:00:24]} 30. Ba6 {[%clk 0:00:07]}  Rd8 {[%clk 0:00:11]} 31. Rff1 {[%clk 0:00:07]}  c5 {[%clk 0:00:08]} 32. bxc5 {[%clk 0:00:07]}  bxc5 {[%clk 0:00:08]} 0-1


[Site "https://www.chess.com"]

[Event "Titled Tuesday Blitz May 4 2021"]
[White "Jian, Alex"]
[Black "Poormosavi, Seyed Kian"]
[WhiteFideId "30901022"]
[BlackFideId "12585807"]
[WhiteElo "2084"]
[BlackElo "2134"]
[Result "0-1"]
[Round "03"]
[TimeControl "180+1"]
[Date "2021.05.04"]
[WhiteClock "0:00:02"]
[BlackClock "0:00:24"]

1. d4 {[%clk 0:03:00]}  Nf6 {[%clk 0:02:58]} 2. c4 {[%clk 0:03:01]}  e6 {[%clk 0:02:56]} 3. Nc3 {[%clk 0:03:01]}  Bb4 {[%clk 0:02:56]} 4. Qc2 {[%clk 0:03:01]}  O-O {[%clk 0:02:51]} 5. a3 {[%clk 0:03:01]}  Bxc3+ {[%clk 0:02:51]} 6. Qxc3 {[%clk 0:03:01]}  b6 {[%clk 0:02:51]} 7. Bg5 {[%clk 0:03:01]}  d6 {[%clk 0:02:42]} 8. f3 {[%clk 0:03:01]}  Nbd7 {[%clk 0:02:42]} 9. e4 {[%clk 0:03:01]}  h6 {[%clk 0:02:41]} 10. Be3 {[%clk 0:02:56]}  e5 {[%clk 0:02:39]} 11. Ne2 {[%clk 0:02:50]}  c5 {[%clk 0:02:36]} 12. d5 {[%clk 0:02:49]}  Nh7 {[%clk 0:02:34]} 13. Ng3 {[%clk 0:02:46]}  Qh4 {[%clk 0:02:29]} 14. Bd3 {[%clk 0:02:41]}  Ndf6 {[%clk 0:02:28]} 15. Bf2 {[%clk 0:02:36]}  Nh5 {[%clk 0:02:20]} 16. Nf5 {[%clk 0:02:21]}  Qf6 {[%clk 0:02:18]} 17. g4 {[%clk 0:02:20]}  Nf4 {[%clk 0:02:18]} 18. O-O-O {[%clk 0:02:15]}  Ng5 {[%clk 0:02:08]} 19. Bh4 {[%clk 0:01:54]}  Ng2 {[%clk 0:02:06]} 20. Bg3 {[%clk 0:00:47]}  Nh3 {[%clk 0:01:48]} 21. Kb1 {[%clk 0:00:40]}  g6 {[%clk 0:01:45]} 22. Bf1 {[%clk 0:00:33]}  Ngf4 {[%clk 0:01:43]} 23. Bh4 {[%clk 0:00:28]}  Ng5 {[%clk 0:01:35]} 24. Nxh6+ {[%clk 0:00:21]}  Kg7 {[%clk 0:01:35]} 25. Nf5+ {[%clk 0:00:21]}  gxf5 {[%clk 0:01:34]} 26. gxf5 {[%clk 0:00:22]}  Kh7 {[%clk 0:01:34]} 27. Rg1 {[%clk 0:00:21]}  Rg8 {[%clk 0:01:35]} 28. Bg3 {[%clk 0:00:15]}  Nh5 {[%clk 0:01:28]} 29. h4 {[%clk 0:00:10]}  Qh6 {[%clk 0:00:57]} 30. hxg5 {[%clk 0:00:10]}  Rxg5 {[%clk 0:00:58]} 31. Bf2 {[%clk 0:00:10]}  Rxg1 {[%clk 0:00:58]} 32. Bxg1 {[%clk 0:00:10]}  Bd7 {[%clk 0:00:59]} 33. Be3 {[%clk 0:00:10]}  Nf4 {[%clk 0:00:58]} 34. Bd3 {[%clk 0:00:09]}  Rg8 {[%clk 0:00:57]} 35. Qc1 {[%clk 0:00:08]}  Rg3 {[%clk 0:00:55]} 36. Rh1 {[%clk 0:00:07]}  Rh3 {[%clk 0:00:55]} 37. Rxh3 {[%clk 0:00:06]}  Qxh3 {[%clk 0:00:56]} 38. Qf1 {[%clk 0:00:04]}  Qh4 {[%clk 0:00:53]} 39. Ka2 {[%clk 0:00:03]}  Kg7 {[%clk 0:00:50]} 40. Be2 {[%clk 0:00:03]}  Kf8 {[%clk 0:00:49]} 41. Bd3 {[%clk 0:00:03]}  Be8 {[%clk 0:00:47]} 42. Bxf4 {[%clk 0:00:03]}  Qxf4 {[%clk 0:00:47]} 43. Qg2 {[%clk 0:00:03]}  Ba4 {[%clk 0:00:44]} 44. Qg4 {[%clk 0:00:02]}  Qd2 {[%clk 0:00:44]} 45. f6 {[%clk 0:00:03]}  Qxd3 {[%clk 0:00:35]} 46. Qc8+ {[%clk 0:00:03]}  Be8 {[%clk 0:00:34]} 47. Qd8 {[%clk 0:00:02]}  Qxc4+ {[%clk 0:00:34]} 48. Ka1 {[%clk 0:00:03]}  Qf1+ {[%clk 0:00:30]} 49. Ka2 {[%clk 0:00:03]}  Qc4+ {[%clk 0:00:31]} 50. Ka1 {[%clk 0:00:03]}  Qa4 {[%clk 0:00:32]} 51. Qe7+ {[%clk 0:00:03]}  Kg8 {[%clk 0:00:33]} 52. Qxd6 {[%clk 0:00:03]}  Qd1+ {[%clk 0:00:25]} 53. Ka2 {[%clk 0:00:04]}  Ba4 {[%clk 0:00:23]} 54. Qb8+ {[%clk 0:00:01]}  Kh7 {[%clk 0:00:23]} 55. b4 {[%clk 0:00:01]}  Bb3+ {[%clk 0:00:22]} 56. Kb2 {[%clk 0:00:02]}  Qc2+ {[%clk 0:00:23]} 57. Ka1 {[%clk 0:00:02]}  Qa2# {[%clk 0:00:24]} 0-1


[Site "https://www.chess.com"]

[Event "Titled Tuesday Blitz May 4 2021"]
[White "Josse, Mark"]
[Black "Sumaneev, Dmitry"]
[WhiteFideId "414476"]
[BlackFideId "4125312"]
[WhiteElo "2266"]
[BlackElo "2502"]
[Result "1/2-1/2"]
[Round "03"]
[TimeControl "180+1"]
[Date "2021.05.04"]
[WhiteClock "0:00:10"]
[BlackClock "0:00:11"]

1. c4 {[%clk 0:02:52]}  Nf6 {[%clk 0:02:59]} 2. Nc3 {[%clk 0:02:52]}  g6 {[%clk 0:02:56]} 3. e4 {[%clk 0:02:45]}  d6 {[%clk 0:02:56]} 4. d4 {[%clk 0:02:44]}  Bg7 {[%clk 0:02:56]} 5. Be2 {[%clk 0:02:43]}  O-O {[%clk 0:02:55]} 6. Nf3 {[%clk 0:02:44]}  c5 {[%clk 0:02:55]} 7. O-O {[%clk 0:02:42]}  cxd4 {[%clk 0:02:47]} 8. Nxd4 {[%clk 0:02:41]}  a6 {[%clk 0:02:45]} 9. h3 {[%clk 0:02:37]}  Nc6 {[%clk 0:02:43]} 10. a4 {[%clk 0:02:32]}  Bd7 {[%clk 0:02:26]} 11. Be3 {[%clk 0:02:28]}  Rc8 {[%clk 0:02:23]} 12. Rc1 {[%clk 0:02:21]}  Nxd4 {[%clk 0:02:09]} 13. Bxd4 {[%clk 0:02:07]}  Bc6 {[%clk 0:02:09]} 14. Bf3 {[%clk 0:02:02]}  Qa5 {[%clk 0:01:55]} 15. b3 {[%clk 0:01:53]}  b5 {[%clk 0:01:42]} 16. axb5 {[%clk 0:01:50]}  axb5 {[%clk 0:01:42]} 17. Nd5 {[%clk 0:01:39]}  Bxd5 {[%clk 0:01:33]} 18. cxd5 {[%clk 0:01:30]}  Qb4 {[%clk 0:01:10]} 19. Rc6 {[%clk 0:01:08]}  Nd7 {[%clk 0:00:29]} 20. Bxg7 {[%clk 0:00:57]}  Kxg7 {[%clk 0:00:30]} 21. Bg4 {[%clk 0:00:57]}  Rxc6 {[%clk 0:00:27]} 22. dxc6 {[%clk 0:00:55]}  Ne5 {[%clk 0:00:27]} 23. c7 {[%clk 0:00:44]}  e6 {[%clk 0:00:24]} 24. Qa1 {[%clk 0:00:21]}  Kg8 {[%clk 0:00:17]} 25. Rc1 {[%clk 0:00:17]}  Rc8 {[%clk 0:00:14]} 26. Qa6 {[%clk 0:00:17]}  Rxc7 {[%clk 0:00:11]} 27. Rxc7 {[%clk 0:00:15]}  Qe1+ {[%clk 0:00:11]} 28. Kh2 {[%clk 0:00:14]}  Qxf2 {[%clk 0:00:12]} 29. Qxd6 {[%clk 0:00:10]}  Nxg4+ {[%clk 0:00:10]} 30. hxg4 {[%clk 0:00:10]}  Qh4+ {[%clk 0:00:10]} 31. Kg1 {[%clk 0:00:11]}  Qe1+ {[%clk 0:00:10]} 32. Kh2 {[%clk 0:00:10]}  Qh4+ {[%clk 0:00:11]} 33. Kg1 {[%clk 0:00:10]}  Qe1+ {[%clk 0:00:11]} 34. Kh2 {[%clk 0:00:10]}  Qh4+ {[%clk 0:00:11]} 1/2-1/2


[Site "https://www.chess.com"]

[Event "Titled Tuesday Blitz May 4 2021"]
[White "Kabanov, Nikolai"]
[Black "Lopez Del Alamo, Antonio"]
[WhiteFideId "4127820"]
[BlackFideId "2227339"]
[WhiteElo "2376"]
[BlackElo "2098"]
[Result "0-1"]
[Round "03"]
[TimeControl "180+1"]
[Date "2021.05.04"]
[WhiteClock "0:00:54"]
[BlackClock "0:00:40"]

1. c4 {[%clk 0:03:00]}  Nf6 {[%clk 0:02:55]} 2. Nc3 {[%clk 0:03:00]}  g6 {[%clk 0:02:51]} 3. g3 {[%clk 0:03:00]}  Bg7 {[%clk 0:02:51]} 4. Bg2 {[%clk 0:03:01]}  O-O {[%clk 0:02:51]} 5. Nf3 {[%clk 0:03:00]}  d6 {[%clk 0:02:51]} 6. O-O {[%clk 0:02:59]}  e5 {[%clk 0:02:43]} 7. d3 {[%clk 0:02:54]}  Nc6 {[%clk 0:02:40]} 8. Rb1 {[%clk 0:02:51]}  a5 {[%clk 0:02:40]} 9. a3 {[%clk 0:02:50]}  h6 {[%clk 0:02:39]} 10. b4 {[%clk 0:02:46]}  axb4 {[%clk 0:02:39]} 11. axb4 {[%clk 0:02:47]}  Be6 {[%clk 0:02:38]} 12. b5 {[%clk 0:02:45]}  Ne7 {[%clk 0:02:37]} 13. Bb2 {[%clk 0:02:40]}  Rb8 {[%clk 0:02:27]} 14. Ra1 {[%clk 0:02:36]}  b6 {[%clk 0:02:19]} 15. Ra7 {[%clk 0:02:33]}  Qd7 {[%clk 0:02:14]} 16. Qa1 {[%clk 0:02:28]}  Nc8 {[%clk 0:02:12]} 17. Ra6 {[%clk 0:02:02]}  Bh3 {[%clk 0:01:59]} 18. Nd5 {[%clk 0:01:33]}  Nxd5 {[%clk 0:01:55]} 19. Bxh3 {[%clk 0:01:28]}  Qxh3 {[%clk 0:01:54]} 20. cxd5 {[%clk 0:01:28]}  Ne7 {[%clk 0:01:39]} 21. Qa2 {[%clk 0:01:16]}  f5 {[%clk 0:01:19]} 22. Rc1 {[%clk 0:01:07]}  e4 {[%clk 0:00:55]} 23. Nd4 {[%clk 0:01:01]}  f4 {[%clk 0:00:41]} 24. Ne6 {[%clk 0:00:54]}  f3 {[%clk 0:00:40]} 0-1


[Site "https://www.chess.com"]

[Event "Titled Tuesday Blitz May 4 2021"]
[White "Kalogeris, Ioannis"]
[Black "Silva, Kaua Marques"]
[WhiteFideId "4239563"]
[BlackFideId "22701168"]
[WhiteElo "2287"]
[BlackElo "2013"]
[Result "1-0"]
[Round "03"]
[TimeControl "180+1"]
[Date "2021.05.04"]
[WhiteClock "0:00:37"]
[BlackClock "0:00:01"]

1. e4 {[%clk 0:03:00]}  c6 {[%clk 0:02:57]} 2. d4 {[%clk 0:03:00]}  d5 {[%clk 0:02:58]} 3. Nc3 {[%clk 0:03:00]}  dxe4 {[%clk 0:02:58]} 4. Nxe4 {[%clk 0:03:01]}  Nf6 {[%clk 0:02:59]} 5. Nxf6+ {[%clk 0:02:59]}  exf6 {[%clk 0:03:00]} 6. Nf3 {[%clk 0:03:00]}  Bd6 {[%clk 0:03:01]} 7. Be3 {[%clk 0:03:00]}  O-O {[%clk 0:03:00]} 8. Qd2 {[%clk 0:03:00]}  Re8 {[%clk 0:02:59]} 9. O-O-O {[%clk 0:03:00]}  Nd7 {[%clk 0:02:58]} 10. c4 {[%clk 0:02:59]}  a5 {[%clk 0:02:42]} 11. c5 {[%clk 0:02:58]}  Bc7 {[%clk 0:02:38]} 12. Kb1 {[%clk 0:02:56]}  Nf8 {[%clk 0:02:37]} 13. Bd3 {[%clk 0:02:52]}  Be6 {[%clk 0:02:26]} 14. Bc2 {[%clk 0:02:45]}  a4 {[%clk 0:02:25]} 15. Ka1 {[%clk 0:02:38]}  Qd5 {[%clk 0:02:00]} 16. Bb1 {[%clk 0:02:35]}  Ng6 {[%clk 0:01:48]} 17. Ne1 {[%clk 0:02:30]}  Ne7 {[%clk 0:01:47]} 18. Nd3 {[%clk 0:02:26]}  Ba5 {[%clk 0:01:45]} 19. Qc2 {[%clk 0:02:22]}  Bf5 {[%clk 0:01:34]} 20. Qe2 {[%clk 0:02:21]}  a3 {[%clk 0:01:29]} 21. Nf4 {[%clk 0:02:15]}  axb2+ {[%clk 0:00:47]} 22. Kxb2 {[%clk 0:02:15]}  Qd7 {[%clk 0:00:44]} 23. Qc4 {[%clk 0:02:14]}  Bxb1 {[%clk 0:00:41]} 24. Rxb1 {[%clk 0:02:14]}  Nd5 {[%clk 0:00:39]} 25. Nxd5 {[%clk 0:02:12]}  cxd5 {[%clk 0:00:39]} 26. Qb3 {[%clk 0:02:12]}  b6 {[%clk 0:00:39]} 27. cxb6 {[%clk 0:02:09]}  Reb8 {[%clk 0:00:37]} 28. Ka1 {[%clk 0:02:07]}  Rxb6 {[%clk 0:00:37]} 29. Qd3 {[%clk 0:02:06]}  Rba6 {[%clk 0:00:36]} 30. Rb2 {[%clk 0:02:02]}  h6 {[%clk 0:00:34]} 31. Rc1 {[%clk 0:02:02]}  Qa4 {[%clk 0:00:33]} 32. Rc5 {[%clk 0:01:58]}  Rb6 {[%clk 0:00:20]} 33. Rxb6 {[%clk 0:01:50]}  Bxb6 {[%clk 0:00:21]} 34. Rc2 {[%clk 0:01:51]}  Qb4 {[%clk 0:00:18]} 35. Rb2 {[%clk 0:01:48]}  Qe1+ {[%clk 0:00:17]} 36. Rb1 {[%clk 0:01:48]}  Qa5 {[%clk 0:00:17]} 37. Qb3 {[%clk 0:01:45]}  Bc7 {[%clk 0:00:16]} 38. Rc1 {[%clk 0:01:42]}  Bd6 {[%clk 0:00:16]} 39. h4 {[%clk 0:01:38]}  Bb4 {[%clk 0:00:16]} 40. h5 {[%clk 0:01:35]}  Be1 {[%clk 0:00:16]} 41. Rc2 {[%clk 0:01:32]}  Kh7 {[%clk 0:00:15]} 42. Qd3+ {[%clk 0:01:31]}  Kg8 {[%clk 0:00:16]} 43. Bf4 {[%clk 0:01:29]}  Qb4 {[%clk 0:00:11]} 44. Bc1 {[%clk 0:01:16]}  Rb8 {[%clk 0:00:08]} 45. Bb2 {[%clk 0:01:11]}  Bxf2 {[%clk 0:00:08]} 46. a3 {[%clk 0:00:55]}  Qe1+ {[%clk 0:00:05]} 47. Ka2 {[%clk 0:00:55]}  Bg3 {[%clk 0:00:04]} 48. Rc3 {[%clk 0:00:51]}  Bd6 {[%clk 0:00:05]} 49. Rc6 {[%clk 0:00:51]}  Bf4 {[%clk 0:00:03]} 50. Qf3 {[%clk 0:00:49]}  Qe4 {[%clk 0:00:03]} 51. Qc3 {[%clk 0:00:46]}  Re8 {[%clk 0:00:02]} 52. a4 {[%clk 0:00:45]}  Qxg2 {[%clk 0:00:02]} 53. a5 {[%clk 0:00:45]}  Bd2 {[%clk 0:00:02]} 54. Qc5 {[%clk 0:00:44]}  Be1 {[%clk 0:00:01]} 55. a6 {[%clk 0:00:43]}  Qe2 {[%clk 0:00:01]} 56. a7 {[%clk 0:00:41]}  Kh7 {[%clk 0:00:02]} 57. Qa3 {[%clk 0:00:37]}  Ra8 {[%clk 0:00:01]} 58. Rc7 {[%clk 0:00:37]} 1-0


[Site "https://www.chess.com"]

[Event "Titled Tuesday Blitz May 4 2021"]
[White "Kanyamarala, Tarun"]
[Black "Suasnabar, Jesus"]
[WhiteFideId "45004714"]
[BlackFideId "3800776"]
[WhiteElo "2086"]
[BlackElo "2002"]
[Result "1-0"]
[Round "03"]
[TimeControl "180+1"]
[Date "2021.05.04"]
[WhiteClock "0:01:07"]
[BlackClock "0:00:07"]

1. d4 {[%clk 0:03:00]}  e6 {[%clk 0:02:54]} 2. Nf3 {[%clk 0:02:56]}  c5 {[%clk 0:02:53]} 3. e3 {[%clk 0:02:50]}  d5 {[%clk 0:02:51]} 4. Bd3 {[%clk 0:02:48]}  Nc6 {[%clk 0:02:51]} 5. b3 {[%clk 0:02:48]}  Nf6 {[%clk 0:02:50]} 6. Bb2 {[%clk 0:02:48]}  Bd6 {[%clk 0:02:47]} 7. Nbd2 {[%clk 0:02:45]}  O-O {[%clk 0:02:46]} 8. a3 {[%clk 0:02:45]}  Qe7 {[%clk 0:02:40]} 9. Ne5 {[%clk 0:02:45]}  cxd4 {[%clk 0:02:32]} 10. exd4 {[%clk 0:02:44]}  Bxe5 {[%clk 0:02:27]} 11. dxe5 {[%clk 0:02:44]}  Nd7 {[%clk 0:02:26]} 12. Qh5 {[%clk 0:02:42]}  g6 {[%clk 0:02:23]} 13. Qe2 {[%clk 0:02:40]}  Nc5 {[%clk 0:02:15]} 14. h4 {[%clk 0:02:29]}  Nxd3+ {[%clk 0:02:03]} 15. cxd3 {[%clk 0:02:16]}  h6 {[%clk 0:01:25]} 16. Qe3 {[%clk 0:01:28]}  Kh7 {[%clk 0:01:21]} 17. Nf3 {[%clk 0:01:25]}  d4 {[%clk 0:01:11]} 18. Nxd4 {[%clk 0:01:22]}  Nxd4 {[%clk 0:01:08]} 19. Bxd4 {[%clk 0:01:22]}  b6 {[%clk 0:01:02]} 20. h5 {[%clk 0:01:20]}  Bb7 {[%clk 0:00:55]} 21. hxg6+ {[%clk 0:01:19]}  fxg6 {[%clk 0:00:29]} 22. Qxh6+ {[%clk 0:01:16]}  Kg8 {[%clk 0:00:29]} 23. Qh8+ {[%clk 0:01:14]}  Kf7 {[%clk 0:00:29]} 24. Rh7+ {[%clk 0:01:15]}  Ke8 {[%clk 0:00:27]} 25. Rxe7+ {[%clk 0:01:15]}  Kxe7 {[%clk 0:00:26]} 26. Qg7+ {[%clk 0:01:16]}  Rf7 {[%clk 0:00:26]} 27. Qxg6 {[%clk 0:01:16]}  Rd8 {[%clk 0:00:19]} 28. Be3 {[%clk 0:01:15]}  Rd7 {[%clk 0:00:11]} 29. Bg5+ {[%clk 0:01:11]}  Kf8 {[%clk 0:00:10]} 30. Qxe6 {[%clk 0:01:08]}  Bxg2 {[%clk 0:00:07]} 31. Bh6+ {[%clk 0:01:08]}  Kg8 {[%clk 0:00:07]} 32. Qg6+ {[%clk 0:01:07]} 1-0


[Site "https://www.chess.com"]